[Event "Titled Tuesday Blitz April 26 Early 2022"]
[White "Zia, Tahsin Tajwar"]
[Black "Mihailidis, Anastasios"]
[WhiteFideId "10211888"]
[BlackFideId "4205588"]
[WhiteElo "1800"]
[BlackElo "2312"]
[Result "0-1"]
[Round "03"]
[TimeControl "180+1"]
[Date "2022.04.26"]
[WhiteClock "0:00:09"]
[BlackClock "0:00:04"]

1. d4 {[%clk 0:03:00]}  d5 {[%clk 0:02:59]} 2. Bf4 {[%clk 0:02:58]}  Nf6 {[%clk 0:02:59]} 3. e3 {[%clk 0:02:56]}  e6 {[%clk 0:02:59]} 4. Nf3 {[%clk 0:02:51]}  Bd6 {[%clk 0:02:59]} 5. Nbd2 {[%clk 0:02:43]}  O-O {[%clk 0:02:55]} 6. Ne5 {[%clk 0:02:39]}  c5 {[%clk 0:02:50]} 7. c3 {[%clk 0:02:36]}  Nc6 {[%clk 0:02:49]} 8. Bd3 {[%clk 0:02:30]}  Bxe5 {[%clk 0:02:47]} 9. dxe5 {[%clk 0:02:25]}  Nd7 {[%clk 0:02:46]} 10. Nf3 {[%clk 0:02:16]}  f5 {[%clk 0:02:46]} 11. exf6 {[%clk 0:02:09]}  Nxf6 {[%clk 0:02:39]} 12. Be5 {[%clk 0:02:03]}  Ng4 {[%clk 0:02:27]} 13. Bg3 {[%clk 0:01:57]}  Nf6 {[%clk 0:02:23]} 14. h4 {[%clk 0:01:50]}  Qe7 {[%clk 0:02:20]} 15. Ne5 {[%clk 0:01:38]}  Nxe5 {[%clk 0:02:13]} 16. Bxe5 {[%clk 0:01:39]}  Qf7 {[%clk 0:01:58]} 17. Qf3 {[%clk 0:01:29]}  c4 {[%clk 0:01:55]} 18. Bc2 {[%clk 0:01:26]}  Nd7 {[%clk 0:01:53]} 19. Qxf7+ {[%clk 0:01:06]}  Rxf7 {[%clk 0:01:53]} 20. Bg3 {[%clk 0:01:02]}  Nf6 {[%clk 0:01:49]} 21. f3 {[%clk 0:01:01]}  Bd7 {[%clk 0:01:47]} 22. h5 {[%clk 0:01:00]}  Bc6 {[%clk 0:01:43]} 23. h6 {[%clk 0:00:59]}  g6 {[%clk 0:01:41]} 24. O-O-O {[%clk 0:00:58]}  Re8 {[%clk 0:01:35]} 25. b4 {[%clk 0:00:50]}  e5 {[%clk 0:01:30]} 26. Kb2 {[%clk 0:00:43]}  b5 {[%clk 0:01:26]} 27. a4 {[%clk 0:00:41]}  a6 {[%clk 0:01:21]} 28. axb5 {[%clk 0:00:41]}  axb5 {[%clk 0:01:22]} 29. Ra1 {[%clk 0:00:41]}  e4 {[%clk 0:01:15]} 30. f4 {[%clk 0:00:38]}  Ng4 {[%clk 0:01:11]} 31. Rae1 {[%clk 0:00:36]}  Ra8 {[%clk 0:01:01]} 32. Bd1 {[%clk 0:00:27]}  Rfa7 {[%clk 0:00:48]} 33. Kc1 {[%clk 0:00:24]}  Ra1+ {[%clk 0:00:35]} 34. Kd2 {[%clk 0:00:23]}  R8a2+ {[%clk 0:00:33]} 35. Bc2 {[%clk 0:00:23]}  Rxe1 {[%clk 0:00:24]} 36. Rxe1 {[%clk 0:00:24]}  Nxh6 {[%clk 0:00:24]} 37. Bh4 {[%clk 0:00:21]}  Nf5 {[%clk 0:00:22]} 38. Bf2 {[%clk 0:00:18]}  Kf7 {[%clk 0:00:19]} 39. g4 {[%clk 0:00:18]}  Ne7 {[%clk 0:00:17]} 40. Bh4 {[%clk 0:00:17]}  Bd7 {[%clk 0:00:17]} 41. Rg1 {[%clk 0:00:15]}  Nc6 {[%clk 0:00:17]} 42. Kc1 {[%clk 0:00:14]}  Ra1+ {[%clk 0:00:16]} 43. Bb1 {[%clk 0:00:15]}  Ra3 {[%clk 0:00:16]} 44. Kb2 {[%clk 0:00:14]}  Ra8 {[%clk 0:00:17]} 45. Bf2 {[%clk 0:00:12]}  Ne7 {[%clk 0:00:15]} 46. Rh1 {[%clk 0:00:12]}  Kg7 {[%clk 0:00:14]} 47. Rg1 {[%clk 0:00:11]}  Rf8 {[%clk 0:00:13]} 48. Bh4 {[%clk 0:00:10]}  Rf7 {[%clk 0:00:13]} 49. Bc2 {[%clk 0:00:10]}  Nc6 {[%clk 0:00:13]} 50. Rd1 {[%clk 0:00:09]}  Be6 {[%clk 0:00:13]} 51. Rd2 {[%clk 0:00:09]}  h6 {[%clk 0:00:10]} 52. Bd1 {[%clk 0:00:10]}  Ra7 {[%clk 0:00:09]} 53. g5 {[%clk 0:00:10]}  h5 {[%clk 0:00:09]} 54. Rg2 {[%clk 0:00:07]}  Ne7 {[%clk 0:00:09]} 55. Rd2 {[%clk 0:00:07]}  Nf5 {[%clk 0:00:09]} 56. Bf2 {[%clk 0:00:08]}  h4 {[%clk 0:00:08]} 57. Bg1 {[%clk 0:00:09]}  h3 {[%clk 0:00:07]} 58. Be2 {[%clk 0:00:09]}  Ng3 {[%clk 0:00:07]} 59. Bh2 {[%clk 0:00:08]}  Nf5 {[%clk 0:00:06]} 60. Bf1 {[%clk 0:00:08]}  Nxe3 {[%clk 0:00:05]} 61. Be2 {[%clk 0:00:09]}  Ng4 {[%clk 0:00:05]} 62. Bxg4 {[%clk 0:00:08]}  Bxg4 {[%clk 0:00:06]} 63. Rxd5 {[%clk 0:00:09]}  Re7 {[%clk 0:00:06]} 64. Re5 {[%clk 0:00:06]}  Rxe5 {[%clk 0:00:06]} 65. fxe5 {[%clk 0:00:07]}  e3 {[%clk 0:00:06]} 66. Kc2 {[%clk 0:00:07]}  Kf7 {[%clk 0:00:07]} 67. Bg3 {[%clk 0:00:06]}  Ke6 {[%clk 0:00:06]} 68. Bh2 {[%clk 0:00:06]}  Kf5 {[%clk 0:00:06]} 69. Bg3 {[%clk 0:00:06]}  Ke4 {[%clk 0:00:06]} 70. e6 {[%clk 0:00:05]}  Bxe6 {[%clk 0:00:06]} 71. Kd1 {[%clk 0:00:06]}  Kf3 {[%clk 0:00:06]} 72. Be5 {[%clk 0:00:06]}  Kf2 {[%clk 0:00:06]} 73. Bd4 {[%clk 0:00:06]}  h2 {[%clk 0:00:05]} 74. Kc2 {[%clk 0:00:06]}  h1=Q {[%clk 0:00:05]} 75. Bxe3+ {[%clk 0:00:07]}  Kxe3 {[%clk 0:00:05]} 76. Kb2 {[%clk 0:00:08]}  Qd1 {[%clk 0:00:04]} 77. Ka3 {[%clk 0:00:09]}  Qb3# {[%clk 0:00:04]} 0-1


[Site "https://www.chess.com"]

[Event "Titled Tuesday Blitz April 26 Early 2022"]
[White "talman67"]
[Black "Vagman, Roy"]
[BlackFideId "2828995"]
[WhiteElo "2132"]
[BlackElo "1927"]
[Result "1-0"]
[Round "03"]
[TimeControl "180+1"]
[Date "2022.04.26"]
[WhiteClock "0:02:11"]
[BlackClock "0:00:41"]

1. e4 {[%clk 0:02:54]}  c5 {[%clk 0:02:55]} 2. Nf3 {[%clk 0:02:54]}  d6 {[%clk 0:02:49]} 3. d4 {[%clk 0:02:54]}  cxd4 {[%clk 0:02:50]} 4. Nxd4 {[%clk 0:02:55]}  Nf6 {[%clk 0:02:51]} 5. Nc3 {[%clk 0:02:56]}  g6 {[%clk 0:02:51]} 6. Be3 {[%clk 0:02:55]}  Bg7 {[%clk 0:02:52]} 7. f3 {[%clk 0:02:55]}  O-O {[%clk 0:02:52]} 8. Qd2 {[%clk 0:02:56]}  Nc6 {[%clk 0:02:52]} 9. O-O-O {[%clk 0:02:57]}  Nxd4 {[%clk 0:02:52]} 10. Bxd4 {[%clk 0:02:57]}  Be6 {[%clk 0:02:52]} 11. Kb1 {[%clk 0:02:57]}  a6 {[%clk 0:02:53]} 12. h4 {[%clk 0:02:57]}  h5 {[%clk 0:02:53]} 13. g4 {[%clk 0:02:55]}  hxg4 {[%clk 0:02:50]} 14. h5 {[%clk 0:02:55]}  Nxh5 {[%clk 0:02:48]} 15. Bxg7 {[%clk 0:02:55]}  Kxg7 {[%clk 0:02:49]} 16. Rxh5 {[%clk 0:02:55]}  Rh8 {[%clk 0:02:17]} 17. Rxh8 {[%clk 0:02:43]}  Qxh8 {[%clk 0:02:18]} 18. fxg4 {[%clk 0:02:44]}  Bxg4 {[%clk 0:02:17]} 19. Be2 {[%clk 0:02:42]}  Bxe2 {[%clk 0:02:17]} 20. Qxe2 {[%clk 0:02:40]}  Kg8 {[%clk 0:02:02]} 21. Qf3 {[%clk 0:02:29]}  Rc8 {[%clk 0:01:51]} 22. Rh1 {[%clk 0:02:29]}  Qg7 {[%clk 0:01:50]} 23. Nd5 {[%clk 0:02:24]}  Kf8 {[%clk 0:01:42]} 24. Qh3 {[%clk 0:02:19]}  Rc6 {[%clk 0:01:31]} 25. Qd7 {[%clk 0:02:19]}  f5 {[%clk 0:00:39]} 26. Qd8+ {[%clk 0:02:15]}  Kf7 {[%clk 0:00:39]} 27. Qxe7+ {[%clk 0:02:16]}  Kg8 {[%clk 0:00:40]} 28. Qe8+ {[%clk 0:02:11]}  Qf8 {[%clk 0:00:41]} 29. Rh8+ {[%clk 0:02:11]} 1-0


[Site "https://www.chess.com"]

[Event "Titled Tuesday Blitz April 26 Early 2022"]
[White "Aaditya Dhingra"]
[Black "Minko, Dmitry"]
[WhiteFideId "25678191"]
[BlackFideId "24188468"]
[WhiteElo "1849"]
[BlackElo "1928"]
[Result "1-0"]
[Round "04"]
[TimeControl "180+1"]
[Date "2022.04.26"]
[WhiteClock "0:00:33"]
[BlackClock "0:00:16"]

1. d4 {[%clk 0:03:00]}  d5 {[%clk 0:02:59]} 2. c4 {[%clk 0:03:00]}  e6 {[%clk 0:03:00]} 3. Nc3 {[%clk 0:03:00]}  Be7 {[%clk 0:02:59]} 4. Nf3 {[%clk 0:02:57]}  Nf6 {[%clk 0:03:00]} 5. Bf4 {[%clk 0:02:56]}  O-O {[%clk 0:03:00]} 6. e3 {[%clk 0:02:55]}  c5 {[%clk 0:03:00]} 7. dxc5 {[%clk 0:02:53]}  dxc4 {[%clk 0:02:48]} 8. Bxc4 {[%clk 0:02:51]}  Bxc5 {[%clk 0:02:49]} 9. Qe2 {[%clk 0:02:47]}  Qe7 {[%clk 0:02:47]} 10. Rd1 {[%clk 0:02:44]}  a6 {[%clk 0:02:47]} 11. a3 {[%clk 0:02:43]}  Rd8 {[%clk 0:02:39]} 12. Rxd8+ {[%clk 0:02:41]}  Qxd8 {[%clk 0:02:39]} 13. O-O {[%clk 0:02:41]}  b5 {[%clk 0:02:40]} 14. Rd1 {[%clk 0:02:39]}  Qb6 {[%clk 0:02:33]} 15. b4 {[%clk 0:02:14]}  Be7 {[%clk 0:02:14]} 16. Bb3 {[%clk 0:02:02]}  Bb7 {[%clk 0:02:13]} 17. Ne5 {[%clk 0:02:02]}  h6 {[%clk 0:01:45]} 18. h3 {[%clk 0:01:39]}  Nc6 {[%clk 0:01:11]} 19. Nd7 {[%clk 0:01:39]}  Nxd7 {[%clk 0:01:12]} 20. Rxd7 {[%clk 0:01:38]}  Bf8 {[%clk 0:01:13]} 21. Bc7 {[%clk 0:01:35]}  Qa7 {[%clk 0:01:13]} 22. Qh5 {[%clk 0:01:20]}  g6 {[%clk 0:01:05]} 23. Qf3 {[%clk 0:01:10]}  Nd8 {[%clk 0:00:51]} 24. Qf6 {[%clk 0:00:46]}  Bc6 {[%clk 0:00:16]} 25. Be5 {[%clk 0:00:33]} 1-0


[Site "https://www.chess.com"]

[Event "Titled Tuesday Blitz April 26 Early 2022"]
[White "Andrews, Todd"]
[Black "Pham, Le Thao Nguyen"]
[WhiteFideId "2012456"]
[BlackFideId "12401226"]
[WhiteElo "2349"]
[BlackElo "2271"]
[Result "0-1"]
[Round "04"]
[TimeControl "180+1"]
[Date "2022.04.26"]
[WhiteClock "0:00:37"]
[BlackClock "0:00:08"]

1. e4 {[%clk 0:03:00]}  c5 {[%clk 0:02:43]} 2. Nf3 {[%clk 0:03:00]}  e6 {[%clk 0:02:42]} 3. d4 {[%clk 0:02:59]}  cxd4 {[%clk 0:02:43]} 4. Nxd4 {[%clk 0:03:00]}  a6 {[%clk 0:02:41]} 5. c4 {[%clk 0:02:59]}  Nf6 {[%clk 0:02:41]} 6. Nc3 {[%clk 0:02:59]}  Bb4 {[%clk 0:02:40]} 7. Bd3 {[%clk 0:02:58]}  Qc7 {[%clk 0:02:31]} 8. Ne2 {[%clk 0:02:49]}  Nc6 {[%clk 0:02:25]} 9. Bf4 {[%clk 0:02:47]}  Ne5 {[%clk 0:02:16]} 10. O-O {[%clk 0:02:44]}  O-O {[%clk 0:02:17]} 11. Rc1 {[%clk 0:02:41]}  Be7 {[%clk 0:02:02]} 12. Bg3 {[%clk 0:02:36]}  d6 {[%clk 0:02:01]} 13. b3 {[%clk 0:02:35]}  b6 {[%clk 0:01:45]} 14. Bb1 {[%clk 0:02:34]}  Nh5 {[%clk 0:01:38]} 15. h3 {[%clk 0:02:13]}  Nxg3 {[%clk 0:01:36]} 16. Nxg3 {[%clk 0:02:12]}  Bb7 {[%clk 0:01:31]} 17. f4 {[%clk 0:02:11]}  Nd7 {[%clk 0:01:31]} 18. Kh2 {[%clk 0:02:09]}  Rad8 {[%clk 0:01:29]} 19. Qh5 {[%clk 0:01:50]}  g6 {[%clk 0:01:26]} 20. Qh6 {[%clk 0:01:37]}  Bf6 {[%clk 0:01:25]} 21. f5 {[%clk 0:01:36]}  Bg7 {[%clk 0:01:09]} 22. Qh4 {[%clk 0:01:35]}  Nf6 {[%clk 0:00:42]} 23. fxe6 {[%clk 0:01:21]}  fxe6 {[%clk 0:00:41]} 24. e5 {[%clk 0:01:21]}  dxe5 {[%clk 0:00:18]} 25. Nce4 {[%clk 0:01:20]}  Nxe4 {[%clk 0:00:16]} 26. Bxe4 {[%clk 0:01:19]}  Rf4 {[%clk 0:00:14]} 27. Rxf4 {[%clk 0:01:09]}  exf4 {[%clk 0:00:15]} 28. Bxb7 {[%clk 0:01:08]}  fxg3+ {[%clk 0:00:15]} 29. Kh1 {[%clk 0:01:07]}  Qd7 {[%clk 0:00:08]} 30. Rf1 {[%clk 0:01:04]}  Rf8 {[%clk 0:00:05]} 31. Rxf8+ {[%clk 0:01:01]}  Bxf8 {[%clk 0:00:06]} 32. Qg4 {[%clk 0:00:55]}  Qxb7 {[%clk 0:00:04]} 33. Qxe6+ {[%clk 0:00:54]}  Qf7 {[%clk 0:00:04]} 34. Qe1 {[%clk 0:00:51]}  Qf2 {[%clk 0:00:03]} 35. Qe6+ {[%clk 0:00:50]}  Kg7 {[%clk 0:00:03]} 36. Qd7+ {[%clk 0:00:50]}  Kh8 {[%clk 0:00:03]} 37. Qd1 {[%clk 0:00:48]}  a5 {[%clk 0:00:03]} 38. a3 {[%clk 0:00:47]}  Bxa3 {[%clk 0:00:03]} 39. Qb1 {[%clk 0:00:47]}  Bc5 {[%clk 0:00:02]} 40. Qd1 {[%clk 0:00:46]}  Kg8 {[%clk 0:00:03]} 41. Qd5+ {[%clk 0:00:45]}  Kg7 {[%clk 0:00:04]} 42. Qd7+ {[%clk 0:00:45]}  Kh6 {[%clk 0:00:05]} 43. Qd1 {[%clk 0:00:45]}  Be3 {[%clk 0:00:06]} 44. Qb1 {[%clk 0:00:43]}  Bd2 {[%clk 0:00:06]} 45. Qg1 {[%clk 0:00:38]}  Qxg1+ {[%clk 0:00:05]} 46. Kxg1 {[%clk 0:00:38]}  Kg5 {[%clk 0:00:05]} 47. Kf1 {[%clk 0:00:39]}  Kf4 {[%clk 0:00:06]} 48. Ke2 {[%clk 0:00:40]}  Bb4 {[%clk 0:00:07]} 49. Kd3 {[%clk 0:00:39]}  Bc5 {[%clk 0:00:08]} 50. Ke2 {[%clk 0:00:37]}  Ke4 {[%clk 0:00:08]} 51. Kd2 {[%clk 0:00:38]}  Bb4+ {[%clk 0:00:07]} 52. Ke2 {[%clk 0:00:37]}  g5 {[%clk 0:00:08]} 0-1


[Site "https://www.chess.com"]

[Event "Titled Tuesday Blitz April 26 Early 2022"]
[White "Antonio, Jorge Carlos"]
[Black "Jones, Daniel"]
[WhiteFideId "113190"]
[BlackFideId "2019655"]
[WhiteElo "2247"]
[BlackElo "2330"]
[Result "1-0"]
[Round "04"]
[TimeControl "180+1"]
[Date "2022.04.26"]
[WhiteClock "0:01:14"]
[BlackClock "0:00:04"]

1. d4 {[%clk 0:03:00]}  Nf6 {[%clk 0:02:55]} 2. Bf4 {[%clk 0:02:58]}  c5 {[%clk 0:02:52]} 3. e3 {[%clk 0:02:57]}  d6 {[%clk 0:02:48]} 4. Nf3 {[%clk 0:02:54]}  cxd4 {[%clk 0:02:44]} 5. exd4 {[%clk 0:02:53]}  g6 {[%clk 0:02:38]} 6. c4 {[%clk 0:02:49]}  Bg7 {[%clk 0:02:35]} 7. Be2 {[%clk 0:02:46]}  O-O {[%clk 0:02:35]} 8. h4 {[%clk 0:02:41]}  h5 {[%clk 0:02:33]} 9. Nc3 {[%clk 0:02:38]}  Bg4 {[%clk 0:02:27]} 10. d5 {[%clk 0:02:35]}  Nbd7 {[%clk 0:02:09]} 11. Rc1 {[%clk 0:02:33]}  Rc8 {[%clk 0:02:09]} 12. O-O {[%clk 0:02:30]}  a6 {[%clk 0:02:06]} 13. Ng5 {[%clk 0:02:28]}  Rxc4 {[%clk 0:02:00]} 14. g3 {[%clk 0:02:18]}  Rb4 {[%clk 0:01:51]} 15. b3 {[%clk 0:02:15]}  Qa5 {[%clk 0:01:31]} 16. Re1 {[%clk 0:02:07]}  Rc8 {[%clk 0:01:12]} 17. Bxg4 {[%clk 0:02:01]}  Nxg4 {[%clk 0:01:09]} 18. Rxe7 {[%clk 0:01:59]}  Rxf4 {[%clk 0:01:00]} 19. gxf4 {[%clk 0:01:55]}  Rxc3 {[%clk 0:00:59]} 20. Rxc3 {[%clk 0:01:52]}  Qxc3 {[%clk 0:00:58]} 21. Rxd7 {[%clk 0:01:49]}  Bd4 {[%clk 0:00:24]} 22. Kg2 {[%clk 0:01:48]}  Bxf2 {[%clk 0:00:19]} 23. Rd8+ {[%clk 0:01:46]}  Kg7 {[%clk 0:00:18]} 24. Ne4 {[%clk 0:01:42]}  Qe3 {[%clk 0:00:13]} 25. Qf3 {[%clk 0:01:38]}  Qe1 {[%clk 0:00:09]} 26. Nxf2 {[%clk 0:01:34]}  Ne3+ {[%clk 0:00:09]} 27. Kh2 {[%clk 0:01:28]}  Nf1+ {[%clk 0:00:08]} 28. Kh3 {[%clk 0:01:25]}  Ne3 {[%clk 0:00:09]} 29. Ne4 {[%clk 0:01:20]}  Ng4 {[%clk 0:00:06]} 30. Qc3+ {[%clk 0:01:15]}  f6 {[%clk 0:00:04]} 31. Qxe1 {[%clk 0:01:14]} 1-0


[Site "https://www.chess.com"]

[Event "Titled Tuesday Blitz April 26 Early 2022"]
[White "Arabidze, Meri"]
[Black "Paravyan, David"]
[WhiteFideId "13604040"]
[BlackFideId "4194985"]
[WhiteElo "2335"]
[BlackElo "2569"]
[Result "0-1"]
[Round "04"]
[TimeControl "180+1"]
[Date "2022.04.26"]
[WhiteClock "0:00:13"]
[BlackClock "0:01:00"]

1. Nf3 {[%clk 0:02:57]}  Nf6 {[%clk 0:02:58]} 2. g3 {[%clk 0:02:57]}  c5 {[%clk 0:02:59]} 3. Bg2 {[%clk 0:02:57]}  Nc6 {[%clk 0:02:59]} 4. O-O {[%clk 0:02:58]}  e5 {[%clk 0:02:57]} 5. c4 {[%clk 0:02:57]}  d5 {[%clk 0:02:57]} 6. cxd5 {[%clk 0:02:57]}  Nxd5 {[%clk 0:02:58]} 7. Nc3 {[%clk 0:02:57]}  Be6 {[%clk 0:02:58]} 8. d3 {[%clk 0:02:55]}  Be7 {[%clk 0:02:58]} 9. Bd2 {[%clk 0:02:52]}  O-O {[%clk 0:02:58]} 10. Nxd5 {[%clk 0:02:49]}  Bxd5 {[%clk 0:02:58]} 11. Bc3 {[%clk 0:02:50]}  Qd6 {[%clk 0:02:55]} 12. Rc1 {[%clk 0:02:47]}  b5 {[%clk 0:02:52]} 13. b3 {[%clk 0:02:41]}  a6 {[%clk 0:02:40]} 14. Nd2 {[%clk 0:02:34]}  Bxg2 {[%clk 0:02:37]} 15. Kxg2 {[%clk 0:02:35]}  f5 {[%clk 0:02:38]} 16. Bb2 {[%clk 0:02:28]}  Kh8 {[%clk 0:02:35]} 17. Kg1 {[%clk 0:02:23]}  Bg5 {[%clk 0:02:33]} 18. Ba3 {[%clk 0:02:19]}  Nb4 {[%clk 0:02:16]} 19. Bxb4 {[%clk 0:01:37]}  cxb4 {[%clk 0:02:17]} 20. Rc2 {[%clk 0:01:22]}  Rad8 {[%clk 0:02:13]} 21. Nf3 {[%clk 0:01:19]}  Bh6 {[%clk 0:01:59]} 22. Nh4 {[%clk 0:00:54]}  e4 {[%clk 0:01:52]} 23. Qe1 {[%clk 0:00:36]}  exd3 {[%clk 0:01:48]} 24. exd3 {[%clk 0:00:37]}  Qxd3 {[%clk 0:01:46]} 25. Rc6 {[%clk 0:00:37]}  Bg5 {[%clk 0:01:35]} 26. Ng2 {[%clk 0:00:30]}  f4 {[%clk 0:01:33]} 27. f3 {[%clk 0:00:13]}  fxg3 {[%clk 0:00:59]} 28. Qxg3 {[%clk 0:00:14]}  Bf6 {[%clk 0:01:00]} 29. Rxa6 {[%clk 0:00:13]}  Bd4+ {[%clk 0:01:00]} 0-1


[Site "https://www.chess.com"]

[Event "Titled Tuesday Blitz April 26 Early 2022"]
[White "Aradhya, Garg"]
[Black "Sargissyan, Sargis"]
[WhiteFideId "25006746"]
[BlackFideId "13303210"]
[WhiteElo "2169"]
[BlackElo "2174"]
[Result "1-0"]
[Round "04"]
[TimeControl "180+1"]
[Date "2022.04.26"]
[WhiteClock "0:02:14"]
[BlackClock "0:00:29"]

1. d4 {[%clk 0:02:59]}  Nf6 {[%clk 0:02:58]} 2. c4 {[%clk 0:02:59]}  g6 {[%clk 0:02:58]} 3. g3 {[%clk 0:02:59]}  c6 {[%clk 0:02:53]} 4. Bg2 {[%clk 0:02:59]}  d5 {[%clk 0:02:53]} 5. Nf3 {[%clk 0:02:59]}  Bg7 {[%clk 0:02:51]} 6. O-O {[%clk 0:02:58]}  O-O {[%clk 0:02:51]} 7. Nbd2 {[%clk 0:02:58]}  Bf5 {[%clk 0:02:40]} 8. b3 {[%clk 0:02:58]}  Ne4 {[%clk 0:02:40]} 9. Bb2 {[%clk 0:02:57]}  Nd7 {[%clk 0:02:39]} 10. Nh4 {[%clk 0:02:57]}  Nxd2 {[%clk 0:02:34]} 11. Qxd2 {[%clk 0:02:58]}  Be6 {[%clk 0:02:33]} 12. e4 {[%clk 0:02:57]}  dxc4 {[%clk 0:02:06]} 13. d5 {[%clk 0:02:53]}  Bxb2 {[%clk 0:02:01]} 14. Qxb2 {[%clk 0:02:49]}  cxd5 {[%clk 0:02:01]} 15. exd5 {[%clk 0:02:49]}  Bf5 {[%clk 0:01:59]} 16. Nxf5 {[%clk 0:02:43]}  gxf5 {[%clk 0:01:57]} 17. bxc4 {[%clk 0:02:43]}  Qc7 {[%clk 0:01:52]} 18. Rfe1 {[%clk 0:02:43]}  Nc5 {[%clk 0:01:34]} 19. Qd2 {[%clk 0:02:39]}  Qd6 {[%clk 0:01:29]} 20. Qg5+ {[%clk 0:02:36]}  Qg6 {[%clk 0:01:18]} 21. Qxe7 {[%clk 0:02:36]}  Rac8 {[%clk 0:01:12]} 22. d6 {[%clk 0:02:32]}  Rfe8 {[%clk 0:01:04]} 23. d7 {[%clk 0:02:19]}  Nxd7 {[%clk 0:00:36]} 24. Qxd7 {[%clk 0:02:18]}  Red8 {[%clk 0:00:34]} 25. Qxb7 {[%clk 0:02:16]}  Rxc4 {[%clk 0:00:29]} 26. Rad1 {[%clk 0:02:14]} 1-0


[Site "https://www.chess.com"]

[Event "Titled Tuesday Blitz April 26 Early 2022"]
[White "Atakhan, Abtin"]
[Black "Tymrakiewicz, Rafal"]
[WhiteFideId "22502203"]
[BlackFideId "1108832"]
[WhiteElo "2094"]
[BlackElo "2205"]
[Result "1-0"]
[Round "04"]
[TimeControl "180+1"]
[Date "2022.04.26"]
[WhiteClock "0:00:03"]
[BlackClock "0:00:02"]

1. c4 {[%clk 0:03:00]}  Nf6 {[%clk 0:03:00]} 2. g3 {[%clk 0:02:58]}  c6 {[%clk 0:02:59]} 3. Bg2 {[%clk 0:02:58]}  d5 {[%clk 0:03:00]} 4. Nf3 {[%clk 0:02:59]}  g6 {[%clk 0:02:58]} 5. O-O {[%clk 0:02:59]}  Bg7 {[%clk 0:02:59]} 6. b3 {[%clk 0:03:00]}  d4 {[%clk 0:02:54]} 7. Bb2 {[%clk 0:02:58]}  c5 {[%clk 0:02:53]} 8. e3 {[%clk 0:02:59]}  Nc6 {[%clk 0:02:52]} 9. exd4 {[%clk 0:02:59]}  cxd4 {[%clk 0:02:52]} 10. Re1 {[%clk 0:03:00]}  O-O {[%clk 0:02:51]} 11. d3 {[%clk 0:02:59]}  Nd7 {[%clk 0:02:45]} 12. a3 {[%clk 0:02:57]}  a5 {[%clk 0:02:44]} 13. Nbd2 {[%clk 0:02:55]}  e5 {[%clk 0:02:44]} 14. Ne4 {[%clk 0:02:55]}  Qe7 {[%clk 0:02:33]} 15. Qc2 {[%clk 0:02:42]}  f6 {[%clk 0:02:30]} 16. c5 {[%clk 0:02:39]}  Rd8 {[%clk 0:02:16]} 17. Nd6 {[%clk 0:02:36]}  Nxc5 {[%clk 0:02:09]} 18. Nxc8 {[%clk 0:02:17]}  Raxc8 {[%clk 0:02:07]} 19. Qc4+ {[%clk 0:02:13]}  Kh8 {[%clk 0:02:07]} 20. Rac1 {[%clk 0:02:05]}  Bf8 {[%clk 0:01:43]} 21. Qc2 {[%clk 0:01:18]}  Qf7 {[%clk 0:01:37]} 22. Nd2 {[%clk 0:01:15]}  b5 {[%clk 0:01:18]} 23. Bxc6 {[%clk 0:01:12]}  Rxc6 {[%clk 0:01:18]} 24. b4 {[%clk 0:01:12]}  axb4 {[%clk 0:01:04]} 25. axb4 {[%clk 0:01:12]}  Ne4 {[%clk 0:00:20]} 26. Qxc6 {[%clk 0:01:07]}  Nxd2 {[%clk 0:00:20]} 27. Rcd1 {[%clk 0:00:59]}  Rd6 {[%clk 0:00:16]} 28. Qxb5 {[%clk 0:00:56]}  Nf3+ {[%clk 0:00:16]} 29. Kg2 {[%clk 0:00:54]}  Nxe1+ {[%clk 0:00:17]} 30. Rxe1 {[%clk 0:00:55]}  Qd5+ {[%clk 0:00:17]} 31. Qxd5 {[%clk 0:00:54]}  Rxd5 {[%clk 0:00:18]} 32. Ba3 {[%clk 0:00:47]}  f5 {[%clk 0:00:17]} 33. Kf3 {[%clk 0:00:44]}  Rb5 {[%clk 0:00:15]} 34. Rc1 {[%clk 0:00:44]}  Rb7 {[%clk 0:00:14]} 35. Re1 {[%clk 0:00:31]}  Bd6 {[%clk 0:00:13]} 36. Rc1 {[%clk 0:00:29]}  Kg7 {[%clk 0:00:12]} 37. Rc4 {[%clk 0:00:27]}  Kf7 {[%clk 0:00:11]} 38. h4 {[%clk 0:00:27]}  Ke6 {[%clk 0:00:11]} 39. g4 {[%clk 0:00:20]}  Kd5 {[%clk 0:00:11]} 40. gxf5 {[%clk 0:00:20]}  gxf5 {[%clk 0:00:12]} 41. Rc1 {[%clk 0:00:17]}  e4+ {[%clk 0:00:12]} 42. Ke2 {[%clk 0:00:17]}  Rc7 {[%clk 0:00:09]} 43. Rxc7 {[%clk 0:00:10]}  Bxc7 {[%clk 0:00:10]} 44. b5 {[%clk 0:00:10]}  Bd6 {[%clk 0:00:08]} 45. Bxd6 {[%clk 0:00:08]}  Kxd6 {[%clk 0:00:08]} 46. dxe4 {[%clk 0:00:09]}  fxe4 {[%clk 0:00:08]} 47. f3 {[%clk 0:00:10]}  e3 {[%clk 0:00:06]} 48. f4 {[%clk 0:00:09]}  Kc5 {[%clk 0:00:06]} 49. f5 {[%clk 0:00:10]}  Kc4 {[%clk 0:00:05]} 50. f6 {[%clk 0:00:08]}  Kc3 {[%clk 0:00:04]} 51. f7 {[%clk 0:00:09]}  d3+ {[%clk 0:00:04]} 52. Kxe3 {[%clk 0:00:10]}  d2 {[%clk 0:00:05]} 53. f8=Q {[%clk 0:00:10]}  d1=Q {[%clk 0:00:05]} 54. Qc5+ {[%clk 0:00:09]}  Kb3 {[%clk 0:00:05]} 55. Qg5 {[%clk 0:00:06]}  Qc1+ {[%clk 0:00:05]} 56. Ke4 {[%clk 0:00:06]}  Qc4+ {[%clk 0:00:05]} 57. Kf3 {[%clk 0:00:05]}  Qf1+ {[%clk 0:00:04]} 58. Kg4 {[%clk 0:00:06]}  Qe2+ {[%clk 0:00:04]} 59. Kf5 {[%clk 0:00:06]}  Qxb5+ {[%clk 0:00:03]} 60. Kf6 {[%clk 0:00:06]}  Qd7 {[%clk 0:00:02]} 61. h5 {[%clk 0:00:04]}  Kc4 {[%clk 0:00:02]} 62. h6 {[%clk 0:00:03]}  Qd6+ {[%clk 0:00:02]} 63. Kg7 {[%clk 0:00:03]}  Qd7+ {[%clk 0:00:02]} 64. Kh8 {[%clk 0:00:03]}  Kd4 {[%clk 0:00:02]} 65. Qg7+ {[%clk 0:00:03]} 1-0


[Site "https://www.chess.com"]

[Event "Titled Tuesday Blitz April 26 Early 2022"]
[White "Banusz, Tamas"]
[Black "Esipenko, Andrey"]
[WhiteFideId "722413"]
[BlackFideId "24175439"]
[WhiteElo "2602"]
[BlackElo "2617"]
[Result "0-1"]
[Round "04"]
[TimeControl "180+1"]
[Date "2022.04.26"]
[WhiteClock "0:00:08"]
[BlackClock "0:00:33"]

1. d4 {[%clk 0:03:00]}  d5 {[%clk 0:02:56]} 2. Nf3 {[%clk 0:03:01]}  Nf6 {[%clk 0:02:56]} 3. g3 {[%clk 0:03:01]}  b5 {[%clk 0:02:48]} 4. Bg2 {[%clk 0:02:58]}  Bb7 {[%clk 0:02:48]} 5. O-O {[%clk 0:02:58]}  e6 {[%clk 0:02:48]} 6. a4 {[%clk 0:02:58]}  b4 {[%clk 0:02:48]} 7. c4 {[%clk 0:02:58]}  bxc3 {[%clk 0:02:45]} 8. Nxc3 {[%clk 0:02:58]}  Nbd7 {[%clk 0:02:43]} 9. a5 {[%clk 0:02:53]}  Ba6 {[%clk 0:02:43]} 10. Re1 {[%clk 0:02:51]}  Bb4 {[%clk 0:02:42]} 11. Qa4 {[%clk 0:02:44]}  Rb8 {[%clk 0:02:29]} 12. Ne5 {[%clk 0:02:32]}  Bxc3 {[%clk 0:02:28]} 13. bxc3 {[%clk 0:02:32]}  Bb5 {[%clk 0:02:28]} 14. Qc2 {[%clk 0:02:31]}  O-O {[%clk 0:02:21]} 15. c4 {[%clk 0:02:21]}  dxc4 {[%clk 0:02:09]} 16. Nc6 {[%clk 0:02:11]}  Bxc6 {[%clk 0:01:59]} 17. Bxc6 {[%clk 0:02:12]}  e5 {[%clk 0:01:42]} 18. d5 {[%clk 0:02:00]}  e4 {[%clk 0:01:27]} 19. Be3 {[%clk 0:01:56]}  Ne5 {[%clk 0:01:04]} 20. Bxa7 {[%clk 0:01:54]}  Rb3 {[%clk 0:00:57]} 21. Bc5 {[%clk 0:01:34]}  Qc8 {[%clk 0:00:52]} 22. Kg2 {[%clk 0:01:05]}  Rd8 {[%clk 0:00:51]} 23. a6 {[%clk 0:01:01]}  Nf3 {[%clk 0:00:41]} 24. Qxc4 {[%clk 0:00:46]}  Nh4+ {[%clk 0:00:36]} 25. gxh4 {[%clk 0:00:10]}  Qh3+ {[%clk 0:00:37]} 26. Kg1 {[%clk 0:00:10]}  Ng4 {[%clk 0:00:37]} 27. f3 {[%clk 0:00:08]}  Qxh2+ {[%clk 0:00:32]} 28. Kf1 {[%clk 0:00:09]}  Qh1+ {[%clk 0:00:32]} 29. Bg1 {[%clk 0:00:08]}  Qh3# {[%clk 0:00:33]} 0-1


[Site "https://www.chess.com"]